[Event "*** Titled Tuesday Blitz"]
[Site "Chess.com"]
[Date "2018.01.02"]
[Round "2"]
[White "PenguinPacks"]
[Black "chesstatour"]
[Result "0-1"]
[WhiteElo "2175"]
[BlackElo "2045"]
[TimeControl "180+2"]
[EndTime "13:24:09 PST"]
[Termination "chesstatour won by checkmate"]

1. e4 {[%clk 0:03:01.9]} 1... c6 {[%clk 0:03:00.7]} 2. d4 {[%clk 0:03:01.2]}
2... d5 {[%clk 0:03:02.6]} 3. e5 {[%clk 0:02:56]} 3... c5 {[%clk 0:03:03]} 4.
dxc5 {[%clk 0:02:53.7]} 4... Nc6 {[%clk 0:03:03.3]} 5. Nf3 {[%clk 0:02:53.7]}
5... Bg4 {[%clk 0:03:03]} 6. c3 {[%clk 0:02:54.9]} 6... e6 {[%clk 0:02:48.5]} 7.
Bf4 {[%clk 0:02:55.3]} 7... Bxc5 {[%clk 0:02:45]} 8. Nbd2 {[%clk 0:02:52.9]}
8... Qb6 {[%clk 0:02:07.8]} 9. Bg3 {[%clk 0:02:40.5]} 9... Qxb2 {[%clk
0:02:07.5]} 10. Rb1 {[%clk 0:02:30.6]} 10... Qxc3 {[%clk 0:01:37.4]} 11. Rb3
{[%clk 0:02:12.3]} 11... Bxf3 {[%clk 0:00:54.8]} 12. Rxc3 {[%clk 0:02:07.9]}
12... Bxd1 {[%clk 0:00:55.3]} 13. Rxc5 {[%clk 0:02:08.8]} 13... Bh5 {[%clk
0:00:46.4]} 14. Bb5 {[%clk 0:02:06.7]} 14... Ne7 {[%clk 0:00:46.4]} 15. O-O
{[%clk 0:01:59.5]} 15... O-O {[%clk 0:00:47.3]} 16. Rb1 {[%clk 0:01:57.1]} 16...
Bg6 {[%clk 0:00:37.5]} 17. Rb2 {[%clk 0:01:55.2]} 17... Rfc8 {[%clk 0:00:31.3]}
18. a4 {[%clk 0:01:51.1]} 18... Nd4 {[%clk 0:00:16.4]} 19. Rxc8+ {[%clk
0:01:50.6]} 19... Rxc8 {[%clk 0:00:17.2]} 20. Bf1 {[%clk 0:01:51.9]} 20... b6
{[%clk 0:00:13.7]} 21. a5 {[%clk 0:01:46.3]} 21... Rc2 {[%clk 0:00:09.8]} 22.
Rxc2 {[%clk 0:01:42]} 22... Nxc2 {[%clk 0:00:11.7]} 23. axb6 {[%clk 0:01:41.6]}
23... axb6 {[%clk 0:00:13.6]} 24. Nb3 {[%clk 0:01:41.8]} 24... h6 {[%clk
0:00:11.6]} 25. Bb5 {[%clk 0:01:24.1]} 25... Na3 {[%clk 0:00:12.2]} 26. Be2
{[%clk 0:01:21.3]} 26... Nc4 {[%clk 0:00:11.5]} 27. f3 {[%clk 0:01:21.5]} 27...
b5 {[%clk 0:00:09.2]} 28. Bf2 {[%clk 0:01:22.3]} 28... Nc6 {[%clk 0:00:08.7]}
29. Bc5 {[%clk 0:01:20.7]} 29... N6xe5 {[%clk 0:00:08.6]} 30. Nd4 {[%clk
0:01:19.5]} 30... Nd3 {[%clk 0:00:09.1]} 31. Bxd3 {[%clk 0:01:17.3]} 31... Bxd3
{[%clk 0:00:10.7]} 32. Nxb5 {[%clk 0:01:14.1]} 32... f6 {[%clk 0:00:09.9]} 33.
Nc7 {[%clk 0:01:10.5]} 33... Kf7 {[%clk 0:00:10.3]} 34. Na6 {[%clk 0:01:07.9]}
34... Ne5 {[%clk 0:00:09.8]} 35. Nb4 {[%clk 0:01:08.4]} 35... Bc4 {[%clk
0:00:10.9]} 36. Kf2 {[%clk 0:01:05.1]} 36... Nd7 {[%clk 0:00:11.6]} 37. Be3
{[%clk 0:01:05.5]} 37... e5 {[%clk 0:00:12]} 38. f4 {[%clk 0:01:06.4]} 38... Ke6
{[%clk 0:00:12.3]} 39. Bc1 {[%clk 0:01:02.9]} 39... Kf5 {[%clk 0:00:11.3]} 40.
Nc2 {[%clk 0:01:01.1]} 40... Bd3 {[%clk 0:00:09.6]} 41. Ne3+ {[%clk 0:01:00.4]}
41... Ke6 {[%clk 0:00:10.9]} 42. Kf3 {[%clk 0:00:59]} 42... Be4+ {[%clk
0:00:11.5]} 43. Kg3 {[%clk 0:00:58]} 43... d4 {[%clk 0:00:11.1]} 44. Nd1 {[%clk
0:00:56.6]} 44... g6 {[%clk 0:00:09.1]} 45. fxe5 {[%clk 0:00:55.5]} 45... Nxe5
{[%clk 0:00:08.4]} 46. Nf2 {[%clk 0:00:56.2]} 46... f5 {[%clk 0:00:08]} 47. Bxh6
{[%clk 0:00:56.6]} 47... Nd3 {[%clk 0:00:07.6]} 48. Bg7 {[%clk 0:00:49.3]} 48...
Nxf2 {[%clk 0:00:06.8]} 49. Kxf2 {[%clk 0:00:48.9]} 49... Kd5 {[%clk 0:00:08.1]}
50. Kg3 {[%clk 0:00:49.4]} 50... Kc4 {[%clk 0:00:08.4]} 51. h4 {[%clk
0:00:48.4]} 51... Kd3 {[%clk 0:00:08]} 52. Kf2 {[%clk 0:00:49.6]} 52... Kc2
{[%clk 0:00:08.1]} 53. g3 {[%clk 0:00:49.4]} 53... d3 {[%clk 0:00:08.4]} 54. Bh6
{[%clk 0:00:49.6]} 54... d2 {[%clk 0:00:08.5]} 55. Bxd2 {[%clk 0:00:50]} 55...
Kxd2 {[%clk 0:00:09.6]} 56. g4 {[%clk 0:00:50.6]} 56... fxg4 {[%clk 0:00:09.7]}
57. Kg3 {[%clk 0:00:52]} 57... Bf3 {[%clk 0:00:10.1]} 58. Kf4 {[%clk 0:00:53.4]}
58... Ke2 {[%clk 0:00:10.2]} 59. Kg3 {[%clk 0:00:49.6]} 59... Kf1 {[%clk
0:00:10.2]} 60. Kh2 {[%clk 0:00:50.8]} 60... Kf2 {[%clk 0:00:10.6]} 61. h5
{[%clk 0:00:52.2]} 61... g3+ {[%clk 0:00:08.6]} 62. Kh3 {[%clk 0:00:53.6]} 62...
Bxh5 {[%clk 0:00:08.1]} 63. Kh4 {[%clk 0:00:54.3]} 63... g2 {[%clk 0:00:08.5]}
64. Kg5 {[%clk 0:00:51.1]} 64... g1=Q+ {[%clk 0:00:09.2]} 65. Kh6 {[%clk
0:00:53]} 65... Bf3 {[%clk 0:00:08.5]} 66. Kg7 {[%clk 0:00:53.2]} 66... g5
{[%clk 0:00:09.2]} 67. Kf6 {[%clk 0:00:54.1]} 67... g4 {[%clk 0:00:09.8]} 68.
Kf5 {[%clk 0:00:53.2]} 68... g3 {[%clk 0:00:11]} 69. Kf6 {[%clk 0:00:50.2]}
69... g2 {[%clk 0:00:12.4]} 70. Kf5 {[%clk 0:00:51.5]} 70... Qe1 {[%clk
0:00:12.7]} 71. Kf6 {[%clk 0:00:52.9]} 71... g1=Q {[%clk 0:00:13.1]} 72. Kf7
{[%clk 0:00:54.8]} 72... Bd5+ {[%clk 0:00:12.8]} 73. Kf6 {[%clk 0:00:55.9]}
73... Qe6# {[%clk 0:00:12.8]} 0-1

[Event "*** Titled Tuesday Blitz"]
[Site "Chess.com"]
[Date "2018.01.02"]
[Round "2"]
[White "sergeikim"]
[Black "EndgameGrinder"]
[Result "1/2-1/2"]
[WhiteElo "2370"]
[BlackElo "2445"]
[TimeControl "180+2"]
[EndTime "13:24:11 PST"]
[Termination "Game drawn by repetition"]

1. d4 {[%clk 0:03:01.9]} 1... Nf6 {[%clk 0:03:00.5]} 2. c4 {[%clk 0:03:01.9]}
2... e6 {[%clk 0:03:01.8]} 3. Nc3 {[%clk 0:03:02.8]} 3... Bb4 {[%clk 0:03:02.7]}
4. Qc2 {[%clk 0:03:03.5]} 4... c5 {[%clk 0:03:03.1]} 5. dxc5 {[%clk 0:03:03.6]}
5... Bxc5 {[%clk 0:03:05]} 6. Nf3 {[%clk 0:03:04.1]} 6... Qb6 {[%clk 0:03:06.6]}
7. e3 {[%clk 0:03:04.7]} 7... Qc7 {[%clk 0:03:08.2]} 8. Bd3 {[%clk 0:03:03.1]}
8... b6 {[%clk 0:03:09.7]} 9. O-O {[%clk 0:02:57.4]} 9... Bb7 {[%clk 0:03:10.6]}
10. Ne4 {[%clk 0:02:57.6]} 10... Be7 {[%clk 0:03:08.9]} 11. b3 {[%clk
0:02:55.4]} 11... Nc6 {[%clk 0:03:09.4]} 12. a3 {[%clk 0:02:55.6]} 12... Nxe4
{[%clk 0:02:25]} 13. Bxe4 {[%clk 0:02:55.7]} 13... f5 {[%clk 0:02:26.9]} 14. Bd3
{[%clk 0:02:55.3]} 14... Bf6 {[%clk 0:02:21.1]} 15. Bb2 {[%clk 0:02:53.7]} 15...
O-O {[%clk 0:02:22]} 16. Rac1 {[%clk 0:02:50.4]} 16... Rac8 {[%clk 0:02:12.9]}
17. e4 {[%clk 0:02:44.7]} 17... fxe4 {[%clk 0:01:38.1]} 18. Bxe4 {[%clk
0:02:45.1]} 18... g6 {[%clk 0:01:39.6]} 19. Rfd1 {[%clk 0:02:14.9]} 19... Nb4
{[%clk 0:01:18]} 20. axb4 {[%clk 0:02:11.7]} 20... Bxe4 {[%clk 0:01:19.6]} 21.
Qxe4 {[%clk 0:02:08]} 21... Bxb2 {[%clk 0:01:21.2]} 22. Rc2 {[%clk 0:02:09.1]}
22... Bg7 {[%clk 0:01:19.9]} 23. Rcd2 {[%clk 0:02:04.4]} 23... Rcd8 {[%clk
0:01:09.5]} 24. h3 {[%clk 0:01:46.2]} 24... a5 {[%clk 0:01:07.4]} 25. bxa5
{[%clk 0:01:32.6]} 25... bxa5 {[%clk 0:01:09.3]} 26. Rd3 {[%clk 0:01:33.5]}
26... Bf6 {[%clk 0:01:01.8]} 27. Qe2 {[%clk 0:01:33.3]} 27... Rfe8 {[%clk
0:00:51.1]} 28. Qd2 {[%clk 0:01:33.6]} 28... Re7 {[%clk 0:00:52.6]} 29. Nd4
{[%clk 0:01:26.6]} 29... Bxd4 {[%clk 0:00:46.4]} 30. Rxd4 {[%clk 0:01:27.6]}
30... Rb8 {[%clk 0:00:46]} 31. Rd3 {[%clk 0:01:23.6]} 31... Rb7 {[%clk 0:00:25]}
32. Qg5 {[%clk 0:01:17.9]} 32... Rf7 {[%clk 0:00:24.4]} 33. g3 {[%clk 0:01:09]}
33... Qb6 {[%clk 0:00:22.5]} 34. R1d2 {[%clk 0:01:03.8]} 34... Qc7 {[%clk
0:00:20.3]} 35. h4 {[%clk 0:01:03.2]} 35... Kg7 {[%clk 0:00:21.8]} 36. h5 {[%clk
0:01:01.9]} 36... Qc8 {[%clk 0:00:17.9]} 37. h6+ {[%clk 0:01:01.7]} 37... Kg8
{[%clk 0:00:19.4]} 38. Qe5 {[%clk 0:00:59.8]} 38... Qe8 {[%clk 0:00:18.2]} 39.
Qxa5 {[%clk 0:00:59.2]} 39... Qf8 {[%clk 0:00:18.2]} 40. Qg5 {[%clk 0:00:56.6]}
40... Rf5 {[%clk 0:00:19.2]} 41. Qe3 {[%clk 0:00:57.3]} 41... Rf7 {[%clk
0:00:18.8]} 42. Qd4 {[%clk 0:00:51.3]} 42... Qe7 {[%clk 0:00:19.5]} 43. c5
{[%clk 0:00:49.4]} 43... Qf8 {[%clk 0:00:20.2]} 44. Qe3 {[%clk 0:00:49.2]} 44...
Qe7 {[%clk 0:00:21.3]} 45. Rc3 {[%clk 0:00:49.2]} 45... Qf6 {[%clk 0:00:21.6]}
46. c6 {[%clk 0:00:45.2]} 46... dxc6 {[%clk 0:00:23.2]} 47. Rxc6 {[%clk
0:00:46]} 47... Rb8 {[%clk 0:00:24.6]} 48. Rxe6 {[%clk 0:00:45.8]} 48... Qf5
{[%clk 0:00:23.1]} 49. Re2 {[%clk 0:00:42.8]} 49... Rbf8 {[%clk 0:00:23.9]} 50.
Re8 {[%clk 0:00:40.2]} 50... Qf6 {[%clk 0:00:24.2]} 51. Rxf8+ {[%clk 0:00:40.7]}
51... Rxf8 {[%clk 0:00:26.1]} 52. Qe6+ {[%clk 0:00:40.6]} 52... Qxe6 {[%clk
0:00:27.6]} 53. Rxe6 {[%clk 0:00:42]} 53... Rb8 {[%clk 0:00:29.5]} 54. Re3
{[%clk 0:00:42.5]} 54... Kf7 {[%clk 0:00:31.1]} 55. Kf1 {[%clk 0:00:42.8]} 55...
g5 {[%clk 0:00:32.6]} 56. Ke2 {[%clk 0:00:38]} 56... Kg6 {[%clk 0:00:34.1]} 57.
Re6+ {[%clk 0:00:37.8]} 57... Kh5 {[%clk 0:00:21.4]} 58. Re3 {[%clk 0:00:31]}
58... Kxh6 {[%clk 0:00:22.4]} 59. Kd2 {[%clk 0:00:32.2]} 59... Kg6 {[%clk
0:00:23.4]} 60. Kc3 {[%clk 0:00:31.6]} 60... Rc8+ {[%clk 0:00:22]} 61. Kb2
{[%clk 0:00:32]} 61... Rb8 {[%clk 0:00:22.2]} 62. Kc3 {[%clk 0:00:31.6]} 62...
Rc8+ {[%clk 0:00:22.9]} 63. Kb2 {[%clk 0:00:32.6]} 63... Rb8 {[%clk 0:00:24.3]}
64. Kc3 {[%clk 0:00:33.7]} 64... Rc8+ {[%clk 0:00:25.2]} 65. Kb2 {[%clk
0:00:34]} 65... Rb8 {[%clk 0:00:26.4]} 1/2-1/2

[Event "*** Titled Tuesday Blitz"]
[Site "Chess.com"]
[Date "2018.01.02"]
[Round "2"]
[White "RoelandPruijssers"]
[Black "Andrejs_Sokolov"]
[Result "1/2-1/2"]
[WhiteElo "2477"]
[BlackElo "2618"]
[TimeControl "180+2"]
[EndTime "13:24:45 PST"]
[Termination "Game drawn - insufficient material"]

1. e4 {[%clk 0:03:01.9]} 1... c6 {[%clk 0:03:00.4]} 2. d4 {[%clk 0:03:02.4]}
2... d5 {[%clk 0:03:01.3]} 3. exd5 {[%clk 0:03:04.3]} 3... cxd5 {[%clk
0:03:01.8]} 4. c4 {[%clk 0:03:06.2]} 4... Nf6 {[%clk 0:03:02.7]} 5. Nc3 {[%clk
0:03:07.5]} 5... Nc6 {[%clk 0:03:03.3]} 6. Bg5 {[%clk 0:03:09]} 6... Qa5 {[%clk
0:02:59.2]} 7. Bxf6 {[%clk 0:02:49.1]} 7... exf6 {[%clk 0:02:59.1]} 8. cxd5
{[%clk 0:02:49.4]} 8... Bb4 {[%clk 0:02:59.6]} 9. Qd2 {[%clk 0:02:44.9]} 9...
Bxc3 {[%clk 0:02:54.8]} 10. bxc3 {[%clk 0:02:46.8]} 10... Qxd5 {[%clk
0:02:55.6]} 11. Nf3 {[%clk 0:02:46.5]} 11... O-O {[%clk 0:02:52.4]} 12. Be2
{[%clk 0:02:47.3]} 12... Bg4 {[%clk 0:02:50.5]} 13. O-O {[%clk 0:02:48.1]} 13...
Rfd8 {[%clk 0:02:50.4]} 14. h3 {[%clk 0:02:44.5]} 14... Bh5 {[%clk 0:02:50]} 15.
Rab1 {[%clk 0:02:45.8]} 15... b6 {[%clk 0:02:48.6]} 16. Rb5 {[%clk 0:02:45.6]}
16... Bxf3 {[%clk 0:02:40.9]} 17. Rxd5 {[%clk 0:02:45.4]} 17... Bxd5 {[%clk
0:02:41.6]} 18. c4 {[%clk 0:02:39.8]} 18... Be4 {[%clk 0:02:40.5]} 19. d5 {[%clk
0:02:40.1]} 19... Na5 {[%clk 0:02:39.6]} 20. f3 {[%clk 0:02:36.9]} 20... Bg6
{[%clk 0:02:38.9]} 21. Re1 {[%clk 0:02:35.5]} 21... Rac8 {[%clk 0:02:39.4]} 22.
Qd4 {[%clk 0:02:29.7]} 22... h6 {[%clk 0:02:35.1]} 23. Bf1 {[%clk 0:02:28.2]}
23... Kf8 {[%clk 0:02:32.7]} 24. g4 {[%clk 0:02:25.6]} 24... Nb7 {[%clk
0:02:23.1]} 25. f4 {[%clk 0:02:24.3]} 25... f5 {[%clk 0:02:15.5]} 26. gxf5
{[%clk 0:02:22.4]} 26... Bxf5 {[%clk 0:02:15.7]} 27. Qe5 {[%clk 0:02:23]} 27...
Nd6 {[%clk 0:02:12.8]} 28. Qe7+ {[%clk 0:02:23.7]} 28... Kg8 {[%clk 0:02:11.7]}
29. Qxa7 {[%clk 0:02:24.2]} 29... Nxc4 {[%clk 0:02:00.6]} 30. Re7 {[%clk
0:01:14.4]} 30... Bg6 {[%clk 0:01:41.9]} 31. f5 {[%clk 0:01:12.7]} 31... Bh5
{[%clk 0:01:42.5]} 32. Rd7 {[%clk 0:01:10.8]} 32... Re8 {[%clk 0:01:36.2]} 33.
Re7 {[%clk 0:01:01.9]} 33... Red8 {[%clk 0:01:36.2]} 34. Bxc4 {[%clk 0:00:32.4]}
34... Rxc4 {[%clk 0:01:35.7]} 35. d6 {[%clk 0:00:33.3]} 35... Rd4 {[%clk
0:01:04.5]} 36. d7 {[%clk 0:00:32.3]} 36... Kf8 {[%clk 0:01:03.6]} 37. Re8+
{[%clk 0:00:21.3]} 37... Rxe8 {[%clk 0:01:03.2]} 38. dxe8=Q+ {[%clk 0:00:23.2]}
38... Kxe8 {[%clk 0:01:04]} 39. Qxb6 {[%clk 0:00:18.4]} 39... Rd1+ {[%clk
0:00:59.1]} 40. Kf2 {[%clk 0:00:17.6]} 40... Rd2+ {[%clk 0:00:57.4]} 41. Ke3
{[%clk 0:00:18.1]} 41... Rxa2 {[%clk 0:00:54.4]} 42. f6 {[%clk 0:00:19.1]} 42...
Re2+ {[%clk 0:00:49.4]} 43. Kd3 {[%clk 0:00:19.6]} 43... gxf6 {[%clk 0:00:49.1]}
44. Qb5+ {[%clk 0:00:20.3]} 44... Kf8 {[%clk 0:00:41]} 45. Qxh5 {[%clk
0:00:22.2]} 45... Re5 {[%clk 0:00:37.5]} 46. Qxh6+ {[%clk 0:00:22.7]} 46... Kg8
{[%clk 0:00:38.5]} 47. Qxf6 {[%clk 0:00:23.5]} 47... Re6 {[%clk 0:00:39.8]} 48.
Qf5 {[%clk 0:00:23.7]} 48... Kg7 {[%clk 0:00:40.7]} 49. h4 {[%clk 0:00:24.9]}
49... Kg8 {[%clk 0:00:41.8]} 50. Qg5+ {[%clk 0:00:24.4]} 50... Kh7 {[%clk
0:00:42.3]} 51. h5 {[%clk 0:00:25.3]} 51... Rh6 {[%clk 0:00:40.6]} 52. Ke4
{[%clk 0:00:23.4]} 52... Re6+ {[%clk 0:00:40.9]} 53. Kf5 {[%clk 0:00:24.5]}
53... Rh6 {[%clk 0:00:41.3]} 54. Kg4 {[%clk 0:00:24.8]} 54... Re6 {[%clk
0:00:41.7]} 55. Qf5+ {[%clk 0:00:24.3]} 55... Kg7 {[%clk 0:00:41.5]} 56. Kg5
{[%clk 0:00:24.9]} 56... Rh6 {[%clk 0:00:35]} 57. Qd5 {[%clk 0:00:22.8]} 57...
Re6 {[%clk 0:00:35.1]} 58. Qd4+ {[%clk 0:00:23.8]} 58... Kh7 {[%clk 0:00:35.8]}
59. Qf4 {[%clk 0:00:23.4]} 59... Kg7 {[%clk 0:00:36.4]} 60. Qf5 {[%clk
0:00:21.2]} 60... Rh6 {[%clk 0:00:35.8]} 61. Qc8 {[%clk 0:00:21.5]} 61... Re6
{[%clk 0:00:36.3]} 62. Qb8 {[%clk 0:00:20]} 62... Rh6 {[%clk 0:00:31.8]} 63. Qh2
{[%clk 0:00:19.9]} 63... Re6 {[%clk 0:00:32.5]} 64. h6+ {[%clk 0:00:21]} 64...
Kh7 {[%clk 0:00:33.4]} 65. Qh3 {[%clk 0:00:22.1]} 65... Rg6+ {[%clk 0:00:33.9]}
66. Kf4 {[%clk 0:00:21.4]} 66... Rxh6 {[%clk 0:00:34.7]} 67. Qd7 {[%clk
0:00:22.9]} 67... Kg7 {[%clk 0:00:35.4]} 68. Kg5 {[%clk 0:00:24]} 68... Rg6+
{[%clk 0:00:36.1]} 69. Kh5 {[%clk 0:00:25.1]} 69... Re6 {[%clk 0:00:37.5]} 70.
Qd4+ {[%clk 0:00:25.1]} 70... Kh7 {[%clk 0:00:38]} 71. Kg5 {[%clk 0:00:25.1]}
71... Kg8 {[%clk 0:00:38.5]} 72. Qh4 {[%clk 0:00:24.8]} 72... Kg7 {[%clk
0:00:38.9]} 73. Qd4+ {[%clk 0:00:25.5]} 73... Kg8 {[%clk 0:00:39.9]} 74. Qc3
{[%clk 0:00:27]} 74... Kh7 {[%clk 0:00:39.5]} 75. Kh5 {[%clk 0:00:28]} 75... Kg8
{[%clk 0:00:40.2]} 76. Qg3+ {[%clk 0:00:29.5]} 76... Rg6 {[%clk 0:00:40.1]} 77.
Qxg6+ {[%clk 0:00:30.4]} 77... fxg6+ {[%clk 0:00:40.6]} 78. Kxg6 {[%clk
0:00:32.3]} 1/2-1/2

[Event "*** Titled Tuesday Blitz"]
[Site "Chess.com"]
[Date "2018.01.02"]
[Round "2"]
[White "korason34"]
[Black "geeeeri"]
[Result "1-0"]
[WhiteElo "2338"]
[BlackElo "2388"]
[TimeControl "180+2"]
[EndTime "13:24:58 PST"]
[Termination "korason34 won by resignation"]

1. d4 {[%clk 0:03:01.9]} 1... Nf6 {[%clk 0:03:00.4]} 2. c4 {[%clk 0:03:03.2]}
2... e6 {[%clk 0:03:01.5]} 3. Nf3 {[%clk 0:03:03.2]} 3... d5 {[%clk 0:03:02.6]}
4. Nc3 {[%clk 0:03:02.8]} 4... Be7 {[%clk 0:03:03.4]} 5. Bg5 {[%clk 0:03:01.1]}
5... c6 {[%clk 0:03:03.9]} 6. e3 {[%clk 0:02:54.8]} 6... O-O {[%clk 0:03:04.6]}
7. Bd3 {[%clk 0:02:55.4]} 7... Nbd7 {[%clk 0:03:04.9]} 8. O-O {[%clk 0:02:55.8]}
8... a6 {[%clk 0:03:05.1]} 9. a4 {[%clk 0:02:52.5]} 9... Re8 {[%clk 0:03:05.7]}
10. Qc2 {[%clk 0:02:49.4]} 10... h6 {[%clk 0:03:06.4]} 11. Bxf6 {[%clk
0:02:40.7]} 11... Bxf6 {[%clk 0:03:01.6]} 12. e4 {[%clk 0:02:41.3]} 12... dxc4
{[%clk 0:03:02.2]} 13. Bxc4 {[%clk 0:02:41.7]} 13... e5 {[%clk 0:03:03.6]} 14.
d5 {[%clk 0:02:40]} 14... c5 {[%clk 0:02:56.3]} 15. h3 {[%clk 0:02:34.8]} 15...
Be7 {[%clk 0:02:53.1]} 16. Be2 {[%clk 0:02:31.1]} 16... Bd6 {[%clk 0:02:53.6]}
17. Nd2 {[%clk 0:02:30.9]} 17... b6 {[%clk 0:02:51.7]} 18. Nc4 {[%clk 0:02:30]}
18... Qc7 {[%clk 0:02:47]} 19. Bg4 {[%clk 0:02:24.9]} 19... Nf8 {[%clk
0:02:44.4]} 20. Bh5 {[%clk 0:02:20.2]} 20... Nh7 {[%clk 0:02:41.8]} 21. Ra3
{[%clk 0:02:16.7]} 21... Bd7 {[%clk 0:02:42.9]} 22. Rb3 {[%clk 0:02:14.3]} 22...
Rab8 {[%clk 0:02:42.5]} 23. Be2 {[%clk 0:02:08.8]} 23... Bc8 {[%clk 0:02:08.4]}
24. Bd3 {[%clk 0:01:58.5]} 24... Ng5 {[%clk 0:02:07]} 25. h4 {[%clk 0:01:56.1]}
25... Nh7 {[%clk 0:02:08]} 26. Qe2 {[%clk 0:01:57.6]} 26... Nf6 {[%clk
0:02:08.9]} 27. Nxd6 {[%clk 0:01:56.1]} 27... Qxd6 {[%clk 0:02:10.8]} 28. Bxa6
{[%clk 0:01:56.7]} 28... Bxa6 {[%clk 0:02:02.1]} 29. Qxa6 {[%clk 0:01:58.6]}
29... Nh5 {[%clk 0:01:59.1]} 30. a5 {[%clk 0:01:48.9]} 30... Qf6 {[%clk
0:01:55.3]} 31. Rxb6 {[%clk 0:01:40.1]} 31... Qxh4 {[%clk 0:01:51]} 32. d6
{[%clk 0:01:36.2]} 32... Rbd8 {[%clk 0:01:45.3]} 33. Qb5 {[%clk 0:01:20.2]}
33... Nf4 {[%clk 0:01:42.3]} 34. Ne2 {[%clk 0:01:18.4]} 34... Re6 {[%clk
0:01:30.9]} 35. Nxf4 {[%clk 0:01:11.5]} 35... exf4 {[%clk 0:01:32.2]} 36. Qd3
{[%clk 0:01:06.7]} 36... Rg6 {[%clk 0:01:25.3]} 37. Qf3 {[%clk 0:00:42.3]} 37...
Rgxd6 {[%clk 0:01:19.6]} 38. Rxd6 {[%clk 0:00:42.1]} 38... Rxd6 {[%clk
0:01:21.5]} 39. e5 {[%clk 0:00:38]} 39... Ra6 {[%clk 0:01:14.1]} 40. Ra1 {[%clk
0:00:37.9]} 40... Qd8 {[%clk 0:01:07]} 41. Qc3 {[%clk 0:00:33.8]} 41... Qc7
{[%clk 0:01:05.8]} 42. b4 {[%clk 0:00:32.1]} 42... f3 {[%clk 0:00:57.9]} 43. b5
{[%clk 0:00:31.7]} 43... Ra8 {[%clk 0:00:52.9]} 44. b6 {[%clk 0:00:30.5]} 44...
Qe7 {[%clk 0:00:36.8]} 45. Qxf3 {[%clk 0:00:30.2]} 45... Rb8 {[%clk 0:00:35.8]}
46. Qd5 {[%clk 0:00:30]} 46... c4 {[%clk 0:00:35.6]} 47. a6 {[%clk 0:00:27.6]}
47... Rd8 {[%clk 0:00:25.7]} 48. Qxd8+ {[%clk 0:00:26.6]} 48... Qxd8 {[%clk
0:00:26.8]} 49. a7 {[%clk 0:00:27.4]} 49... Qxb6 {[%clk 0:00:23.4]} 50. a8=Q+
{[%clk 0:00:27.1]} 50... Kh7 {[%clk 0:00:25]} 51. Qe4+ {[%clk 0:00:28.6]} 51...
g6 {[%clk 0:00:26.6]} 52. Qxc4 {[%clk 0:00:29.7]} 52... Kg7 {[%clk 0:00:26.7]}
53. Rc1 {[%clk 0:00:28.9]} 53... Qb2 {[%clk 0:00:26.2]} 54. Re1 {[%clk 0:00:28]}
54... Qd2 {[%clk 0:00:24.2]} 55. Qe4 {[%clk 0:00:29.2]} 55... Qg5 {[%clk
0:00:23.5]} 56. g3 {[%clk 0:00:29.6]} 56... h5 {[%clk 0:00:24.2]} 57. e6 {[%clk
0:00:30.9]} 57... fxe6 {[%clk 0:00:25.1]} 58. Qxe6 {[%clk 0:00:31]} 58... Kh6
{[%clk 0:00:25.8]} 59. Qe5 {[%clk 0:00:30.5]} 59... Qd8 {[%clk 0:00:25]} 60.
Qf4+ {[%clk 0:00:29.2]} 60... Kh7 {[%clk 0:00:26.4]} 61. Qf3 {[%clk 0:00:30]}
61... Kh6 {[%clk 0:00:26.6]} 62. Ra1 {[%clk 0:00:30.8]} 62... Qd4 {[%clk
0:00:26.8]} 63. Rb1 {[%clk 0:00:31.6]} 63... Qd7 {[%clk 0:00:26.3]} 64. Qf4+
{[%clk 0:00:32.4]} 64... Kh7 {[%clk 0:00:27]} 65. Re1 {[%clk 0:00:32.2]} 65...
Qb7 {[%clk 0:00:26.6]} 66. Qe4 {[%clk 0:00:33]} 66... Qb5 {[%clk 0:00:22.6]} 67.
Kg2 {[%clk 0:00:33.7]} 67... Kh6 {[%clk 0:00:23.1]} 68. Re3 {[%clk 0:00:33.5]}
68... Qc5 {[%clk 0:00:22.5]} 69. Rf3 {[%clk 0:00:33.2]} 69... Kg7 {[%clk
0:00:22]} 70. Qf4 {[%clk 0:00:31.3]} 70... Qe7 {[%clk 0:00:21]} 71. Re3 {[%clk
0:00:32]} 71... Qd7 {[%clk 0:00:21.8]} 72. Qe5+ {[%clk 0:00:31.2]} 72... Kh6
{[%clk 0:00:19.8]} 73. Qh8+ {[%clk 0:00:31.2]} 73... Kg5 {[%clk 0:00:21.2]} 74.
Re5+ {[%clk 0:00:31]} 1-0